bitfinex-derivatives/quotes_BNBF0:USTF0_20241231
["timestamp","ask_amount","ask_price","bid_price","bid_amount"]
[1735659727413,1.46412268,713.6,712.67,1.04675621]
[1735659727617,0.25795903,713.59,712.67,1.04675621]
[1735659728418,0.25798682,713.58,712.62,1.04675621]
[1735659728617,0.25798682,713.57,712.62,1.04675621]
[1735659728820,0.25798682,713.56,712.62,1.04675621]
[1735659729029,0.25798682,713.55,712.62,1.04675621]
[1735659729215,1.05087993,713.52,712.55,1.04675621]
[1735659729417,0.25798682,713.51,712.55,1.04675621]
[1735659729620,0.25798682,713.51,712.54,0.28068599]
[1735659729820,1.72238675,713.5,712.54,0.28068599]
[1735659730119,1.46439993,713.5,712.54,0.28068599]
[1735659730318,0.25801715,713.49,712.54,0.28068599]
[1735659730719,0.25801715,713.49,712.55,1.04758328]
[1735659731724,0.25801715,713.49,712.54,0.28068599]
[1735659733330,1.46439993,713.5,712.54,0.28068599]
[1735659733526,0.25801798,713.49,712.54,0.28068599]
[1735659733729,1.46439993,713.5,712.54,0.28068599]
[1735659733927,0.25801323,713.49,712.54,0.28068599]
[1735659734130,1.46439993,713.5,712.54,0.28068599]
[1735659734534,0.25801942,713.49,712.54,0.28068599]
[1735659736239,0.25807158,713.48,712.54,0.28068599]
[1735659736439,0.25807158,713.47,712.54,0.28068599]
[1735659736734,0.25807158,713.46,712.54,0.28068599]
[1735659736936,0.25807158,713.45,712.54,0.28068599]
[1735659737132,0.25807158,713.44,712.54,0.28068599]
[1735659737331,1.30887383,713.43,712.54,0.27212789]
[1735659737538,0.25807158,713.42,712.54,0.27212789]
[1735659738462,0.25807158,713.41,712.54,0.27212789]
[1735659738674,1.05080225,713.49,712.54,0.27212789]
[1735659738867,0.25807356,713.48,712.54,0.27212789]
[1735659739556,0.25807356,713.47,712.54,0.27212789]
[1735659739753,0.25807356,713.46,712.54,0.27212789]
[1735659739955,0.25807356,713.45,712.54,0.27212789]
[1735659740256,0.25807356,713.44,712.54,0.27212789]
[1735659740457,0.25807356,713.43,712.54,0.27212789]
[1735659740756,0.25807356,713.42,712.54,0.27212789]
[1735659740959,0.25807356,713.41,712.54,0.27212789]
[1735659741256,1.464816,713.42,712.54,0.27212789]
[1735659741454,0.25808718,713.41,712.54,0.27212789]
[1735659742048,0.25808961,713.4,712.54,0.27212789]
[1735659742234,0.25808961,713.39,712.06,1.04758328]
[1735659742439,0.25808961,713.38,712.07,0.28087126]
[1735659742635,1.464816,713.42,712.07,0.28087126]
[1735659742636,0.25808961,713.37,712.07,0.28087126]
[1735659742841,0.25808961,713.36,712.07,0.28087126]
[1735659743043,0.25808961,713.35,712.07,0.28087126]
[1735659743243,0.25808961,713.34,712.07,0.28087126]
[1735659743544,0.25808961,713.33,712.07,0.28087126]
[1735659743742,0.25808961,713.32,712.07,0.28087126]
[1735659743945,1.464816,713.42,712.11,1.04758328]
[1735659744140,0.25803022,713.41,712.11,1.04758328]
[1735659745046,0.25803022,713.41,712.12,0.28085154]
[1735659745244,0.25803022,713.41,712.15,1.04758328]
[1735659745739,0.25803022,713.41,712.16,0.28083576]
[1735659749143,1.464816,713.42,712.16,0.28083576]
[1735659749144,0.258057,713.4,712.16,0.28083576]
[1735659749347,0.258057,713.39,712.16,0.28083576]
[1735659749546,0.258057,713.38,712.16,0.28083576]
[1735659749748,0.258057,713.37,712.16,0.28083576]
[1735659750043,0.25805317,713.36,712.16,0.28083576]
[1735659750250,0.25805317,713.35,712.16,0.28083576]
[1735659750450,0.25805317,713.34,712.16,0.28083576]
[1735659750651,0.25805317,713.33,712.16,0.28083576]
[1735659750949,0.25805317,713.32,712.16,0.28083576]
[1735659751146,0.25805317,713.31,712.16,0.28083576]
[1735659751344,0.25805317,713.3,712.16,0.28083576]
[1735659751546,0.25805317,713.29,712.16,0.28083576]
[1735659751850,1.46483142,713.32,712.16,0.28083576]
[1735659751851,0.25805918,713.28,712.16,0.28083576]
[1735659752049,0.25805918,713.27,712.16,0.28083576]
[1735659752244,0.25805918,713.26,712.16,0.28083576]
[1735659752451,1.46483142,713.32,712.16,0.28083576]
[1735659752649,0.25805367,713.31,712.16,0.28083576]
[1735659753051,0.25805367,713.31,712.16,1.32841904]
[1735659754447,1.46483142,713.32,712.16,1.32841904]
[1735659754645,0.25807162,713.31,712.16,1.32841904]
[1735659755152,0.25807162,713.31,712.21,1.04758328]
[1735659756152,0.25807162,713.31,712.22,1.04758328]
[1735659757053,0.25807162,713.31,712.2,1.04758328]
[1735659758553,0.25807162,713.31,712.16,0.28083576]
[1735659758554,0.25807162,713.31,712.25,1.04758328]
[1735659759552,0.25807162,713.31,712.24,1.04758328]
[1735659760758,0.25807162,713.31,712.29,1.04758328]
[1735659762557,0.25806393,713.3,712.29,1.04758328]
[1735659762751,0.25806393,713.29,712.34,1.04758328]
[1735659762955,0.25806393,713.28,712.34,1.04758328]
[1735659763153,0.25806393,713.27,712.34,1.04758328]
[1735659763354,0.25806393,713.26,712.34,1.04758328]
[1735659763557,0.25806393,713.25,712.34,1.04758328]
[1735659763858,0.25806393,713.24,712.37,1.04758328]
[1735659764056,0.25806393,713.23,712.37,1.04758328]
[1735659764257,0.25806393,713.22,712.37,1.04758328]
[1735659764458,1.46483142,713.32,712.37,1.04758328]
[1735659764659,0.25806351,713.31,712.37,1.04758328]
[1735659765052,0.25807788,713.3,712.37,1.04758328]
[1735659765257,0.25807788,713.29,712.37,1.04758328]
[1735659765459,0.25807788,713.28,712.37,1.04758328]
[1735659765659,0.25807788,713.27,712.37,1.04758328]
[1735659765859,1.46483142,713.32,712.37,1.04758328]
[1735659765860,0.258069,713.26,712.37,1.04758328]
[1735659766056,0.258069,713.25,712.37,1.04758328]
[1735659766258,0.258069,713.24,712.37,1.04758328]
[1735659766455,0.258069,713.23,712.37,1.04758328]
[1735659766661,0.258069,713.22,712.35,1.04758328]
[1735659766855,0.258069,713.21,712.35,1.04758328]
[1735659767059,1.46483142,713.32,712.35,1.04758328]
[1735659767255,0.25806598,713.31,712.35,1.04758328]
[1735659767761,0.25806598,713.31,712.16,0.28083576]
[1735659767762,0.25806598,713.31,712.38,1.04758328]
[1735659768756,0.25806598,713.31,712.39,1.04758328]
[1735659769865,0.25806598,713.31,712.4,1.04758328]
[1735659770264,1.46483142,713.32,712.4,1.04758328]
[1735659770565,0.25809051,713.31,712.4,1.04758328]
[1735659771163,1.05080225,713.26,712.32,1.04758328]
[1735659771359,0.25809051,713.25,712.32,1.04758328]
[1735659771964,1.46498044,713.24,712.32,1.04758328]
[1735659772265,1.46498044,713.24,712.16,0.28083576]
[1735659772266,1.05080225,713.2,712.25,1.04758328]
[1735659772559,0.25809051,713.19,712.25,1.04758328]
[1735659773565,0.25812346,713.18,712.24,1.04758328]
[1735659773756,0.25812346,713.21,712.24,1.04758328]
[1735659773962,0.25812346,713.2,712.24,1.04758328]
[1735659774162,0.25812346,713.19,712.24,1.04758328]
[1735659774364,0.25812346,713.18,712.24,1.04758328]
[1735659774565,0.25812346,713.17,712.22,1.04758328]
[1735659774864,0.25812346,713.16,712.22,1.04758328]
[1735659775064,0.25812346,713.15,712.22,1.04758328]
[1735659775363,0.25812346,713.14,712.22,1.04758328]
[1735659775559,0.25811965,713.13,712.22,1.04758328]
[1735659775764,0.25811965,713.13,712.16,0.28083576]
[1735659775765,0.25811965,713.12,712.25,1.04758328]
[1735659776063,0.25811965,713.11,712.25,1.04758328]
[1735659776266,1.46498044,713.24,712.25,1.04758328]
[1735659776466,0.25812487,713.23,712.25,1.04758328]
[1735659776666,0.25812434,713.23,712.25,1.04758328]
[1735659777165,0.25812434,713.23,712.16,0.28083576]
[1735659777166,0.25812434,713.23,712.21,1.04758328]
[1735659777965,0.25812434,713.23,712.16,0.28083576]
[1735659778168,0.25811418,713.22,712.16,0.28083576]
[1735659778466,0.25811418,713.21,712.16,0.28083576]
[1735659778666,1.46498044,713.24,712.16,0.28083576]
[1735659778867,0.25811525,713.23,712.16,0.28083576]
[1735659780566,1.46498044,713.24,712.16,0.28083576]
[1735659780767,0.25811447,713.23,712.16,0.28083576]
[1735659786764,1.46498044,713.24,712.16,0.28083576]
[1735659790369,0.25815486,713.23,712.16,0.28083576]
[1735659790567,0.25816417,713.22,712.16,0.28083576]
[1735659790872,0.25816417,713.21,712.16,0.28083576]
[1735659791075,0.25816417,713.2,712.16,0.28083576]
[1735659791273,0.25816417,713.19,712.16,0.28083576]
[1735659791475,0.25816417,713.18,712.16,0.28083576]
[1735659791773,1.46498044,713.24,712.16,0.28083576]
[1735659792069,0.2581651,713.23,712.16,0.28083576]
[1735659793277,0.25816162,713.22,712.16,0.28083576]
[1735659793577,0.25816162,713.21,712.16,0.28083576]
[1735659793772,0.25816162,713.2,712.16,0.28083576]
[1735659793977,0.25816162,713.19,712.16,0.28083576]
[1735659794176,0.25816162,713.18,712.16,0.28083576]
[1735659794376,0.25816162,713.17,712.16,0.28083576]
[1735659794573,1.46498044,713.24,712.16,0.28083576]
[1735659794773,0.25817639,713.23,712.16,0.28083576]
[1735659794968,0.25817639,713.22,712.16,0.28083576]
[1735659795775,0.25817183,713.21,712.16,0.28083576]
[1735659795974,0.25817183,713.2,712.16,0.28083576]
[1735659796181,0.25817183,713.19,712.16,0.28083576]
[1735659796376,1.46540199,713.23,712.16,0.28083576]
[1735659796584,0.25816597,713.22,712.16,0.28083576]
[1735659798477,0.2581628,713.21,712.16,0.28083576]
[1735659798681,0.2581628,713.2,712.16,0.28083576]
[1735659798882,0.2581628,713.19,712.16,0.28083576]
[1735659799083,0.2581628,713.18,712.16,0.28083576]
[1735659799283,0.2581628,713.17,712.16,0.28083576]
[1735659799483,1.46540199,713.23,712.16,0.28083576]
[1735659799685,0.25816703,713.22,712.16,0.28083576]
[1735659801087,1.46540199,713.23,712.16,0.28083576]
[1735659801284,0.25815783,713.22,712.16,0.28083576]
[1735659803685,0.25816477,713.21,712.16,0.28083576]
[1735659803886,0.25816477,713.2,712.16,0.28083576]
[1735659804087,0.25816477,713.19,712.16,0.28083576]
[1735659804288,0.25816881,713.18,712.16,0.28083576]
[1735659804485,0.25816881,713.17,712.16,0.28083576]
[1735659804782,0.25816881,713.16,712.16,0.28083576]
[1735659804988,0.25816881,713.15,712.16,0.28083576]
[1735659805288,0.25816881,713.14,712.16,0.28083576]
[1735659805483,0.25816881,713.13,712.16,0.28083576]
[1735659806295,0.25815291,713.12,712.16,0.28083576]
[1735659806592,0.25815291,713.11,712.16,0.28083576]
[1735659806794,0.25815291,713.1,712.16,0.28083576]
[1735659806995,0.25815291,713.09,712.16,0.28083576]
[1735659807195,0.25815291,713.08,712.16,0.28083576]
[1735659807494,0.25815291,713.07,712.16,0.28083576]
[1735659807695,0.25815291,713.06,712.16,0.28083576]
[1735659807995,0.25817036,713.05,712.16,0.28083576]
[1735659808191,1.46529401,713.14,712.16,0.28083576]
[1735659808492,0.25816591,713.13,712.16,0.28083576]
[1735659808794,0.25815944,713.12,712.16,0.28083576]
[1735659808994,0.25815944,713.11,712.16,0.28083576]
[1735659809298,0.25815944,713.1,712.16,0.28083576]
[1735659809596,0.25815944,713.09,712.16,0.28083576]
[1735659809795,0.25815944,713.08,712.16,0.28083576]
[1735659809995,0.25815944,713.07,712.16,0.28083576]
[1735659810193,0.25815944,713.06,712.16,0.28083576]
[1735659810393,1.46529401,713.14,712.16,0.28083576]
[1735659810593,0.25815837,713.13,712.16,0.28083576]
[1735659811589,0.25815811,713.12,712.16,0.28083576]
[1735659811794,0.25815811,713.11,712.16,0.28083576]
[1735659811997,0.25815372,713.1,712.16,0.28083576]
[1735659812295,0.25813129,713.09,712.16,0.28083576]
[1735659812492,1.46529401,713.14,712.16,0.28083576]
[1735659812708,0.25813188,713.13,712.16,0.28083576]
[1735659812997,0.25813188,713.13,712.16,1.32841904]
[1735659814196,1.46529401,713.14,712.16,1.32841904]
[1735659815198,1.46529401,713.14,712.21,1.04758328]
[1735659816199,1.46529401,713.14,712.23,1.04758328]
[1735659817393,1.46529401,713.14,712.18,1.04758328]
[1735659818803,1.46529401,713.14,712.16,0.28083576]
[1735659821002,1.05080225,713.5,712.16,0.28083576]
[1735659821202,1.46505754,713.19,712.16,0.28083576]
[1735659821402,1.05080225,713.5,712.16,0.28083576]
[1735659821601,1.46503184,713.19,712.16,0.28083576]
[1735659822001,1.05080225,713.5,712.16,0.28083576]
[1735659822202,0.25808498,713.49,712.16,0.28083576]
[1735659822400,0.25808498,713.48,712.16,0.28083576]
[1735659822604,0.25808498,713.47,712.16,0.28083576]
[1735659822897,0.25808498,713.46,712.16,0.28083576]
[1735659823104,0.25808498,713.45,712.16,0.28083576]
[1735659827804,0.2580738,713.44,712.16,0.28083576]
[1735659828002,0.2580738,713.43,712.16,0.28083576]
[1735659828206,0.2580738,713.42,712.21,1.04758328]
[1735659828409,0.2580738,713.41,712.21,1.04758328]
[1735659828611,0.2580738,713.4,712.21,1.04758328]
[1735659828906,0.2580738,713.39,712.21,1.04758328]
[1735659829111,0.2580738,713.38,712.21,1.04758328]
[1735659829308,0.2580738,713.37,712.21,1.04758328]
[1735659829504,0.2580738,713.36,712.21,1.04758328]
[1735659829702,1.4647749,713.46,712.21,1.04758328]
[1735659829908,0.25807165,713.45,712.21,1.04758328]
[1735659831115,0.25807165,713.45,712.19,1.04758328]
[1735659832212,0.25807165,713.45,712.16,1.32841904]
[1735659832410,0.25809264,713.44,712.16,1.32841904]
[1735659832606,0.25809264,713.43,712.16,1.32841904]
[1735659832810,0.25809264,713.42,712.16,1.32841904]
[1735659833114,0.25809264,713.41,712.16,1.32841904]
[1735659833311,0.25809264,713.4,712.16,1.32841904]
[1735659833512,0.25809264,713.39,712.19,1.04758328]
[1735659833706,0.25809264,713.38,712.19,1.04758328]
[1735659833903,0.25809264,713.37,712.19,1.04758328]
[1735659834110,0.25809264,713.36,712.19,1.04758328]
[1735659834616,0.25809264,713.36,712.16,0.28083576]
[1735659834617,0.25809264,713.36,712.16,1.32841904]
[1735659835010,1.46486739,713.37,712.16,1.32841904]
[1735659835011,0.25810946,713.35,712.16,1.32841904]
[1735659835209,0.25810946,713.34,712.16,1.32841904]
[1735659835409,0.25810946,713.33,712.16,1.32841904]
[1735659835605,1.46486739,713.37,712.16,1.32841904]
[1735659835810,0.25810825,713.36,712.16,1.32841904]
[1735659837214,0.25810825,713.36,712.16,0.28083576]
[1735659837620,1.46486739,713.37,712.16,0.28083576]
[1735659837815,0.25809441,713.36,712.16,0.28083576]
[1735659838217,0.25809441,713.36,712.21,1.04758328]
[1735659839115,0.25809441,713.36,712.19,1.04758328]
[1735659839912,0.25809441,713.36,712.22,1.04758328]
[1735659840313,0.25809948,713.35,712.22,1.04758328]
[1735659840514,0.25809948,713.34,712.22,1.04758328]
[1735659840714,0.25809948,713.33,712.22,1.04758328]
[1735659840911,0.25809948,713.32,712.22,1.04758328]
[1735659841117,0.25809948,713.31,712.2,1.04758328]
[1735659841317,0.25809948,713.3,712.2,1.04758328]
[1735659841518,0.25809948,713.29,712.2,1.04758328]
[1735659841712,0.25809948,713.28,712.2,1.04758328]
[1735659841917,0.25809948,713.27,712.2,1.04758328]
[1735659842117,0.25809821,713.26,712.2,1.04758328]
[1735659842318,0.25809821,713.25,712.22,1.04758328]
[1735659842516,0.25809821,713.24,712.22,1.04758328]
[1735659842718,0.25809821,713.23,712.22,1.04758328]
[1735659843018,0.25811026,713.22,712.22,1.04758328]
[1735659843319,0.25811026,713.21,712.22,1.04758328]
[1735659843515,0.25811026,713.2,712.23,1.04758328]
[1735659843718,0.25811026,713.19,712.23,1.04758328]
[1735659843919,0.25811026,713.18,712.23,1.04758328]
[1735659844218,0.25811026,713.17,712.23,1.04758328]
[1735659844417,0.25811026,713.16,712.23,1.04758328]
[1735659844816,0.25811026,713.16,712.16,0.28083576]
[1735659844817,0.2580971,713.15,712.25,1.04758328]
[1735659845017,0.2580971,713.14,712.25,1.04758328]
[1735659845315,0.2580971,713.13,712.25,1.04758328]
[1735659845518,0.2580971,713.12,712.25,1.04758328]
[1735659845714,0.2580971,713.11,712.28,1.04758328]
[1735659845919,0.2580971,713.1,712.28,1.04758328]
[1735659846120,1.46492391,713.17,712.28,1.04758328]
[1735659846418,0.2580993,713.16,712.28,1.04758328]
[1735659846621,0.2580993,713.16,712.31,1.04758328]
[1735659847419,0.25811349,713.15,712.31,1.04758328]
[1735659847715,1.46492391,713.17,712.31,1.04758328]
[1735659847716,0.25811349,713.14,712.31,1.04758328]
[1735659847923,0.25811349,713.13,712.33,1.04758328]
[1735659848122,1.46492391,713.17,712.33,1.04758328]
[1735659848314,0.25811928,713.16,712.33,1.04758328]
[1735659848923,0.25811928,713.16,712.23,1.04758328]
[1735659849823,0.25811928,713.16,712.24,1.04758328]
[1735659850022,0.25812254,713.15,712.24,1.04758328]
[1735659850222,0.25812254,713.14,712.24,1.04758328]
[1735659850423,1.46492391,713.17,712.24,1.04758328]
[1735659850723,0.25811699,713.16,712.24,1.04758328]
[1735659851624,0.25811699,713.16,712.23,1.04758328]
[1735659852124,1.46492391,713.17,712.23,1.04758328]
[1735659852825,1.46492391,713.17,712.17,1.04758328]
[1735659853829,0.25813476,713.16,712.17,1.04758328]
[1735659854028,1.46492391,713.17,712.17,1.04758328]
[1735659855331,1.46492391,713.17,712.16,0.28083576]
[1735659860633,0.25816844,713.16,712.16,0.28083576]
[1735659861331,1.46492391,713.17,712.16,0.28083576]
[1735659861635,0.2581638,713.16,712.16,0.28083576]
[1735659862033,1.46492391,713.17,712.16,0.28083576]
[1735659862233,0.25816626,713.16,712.16,0.28083576]
[1735659862432,1.46492391,713.17,712.16,0.28083576]
[1735659863635,0.25816479,713.16,712.16,0.28083576]
[1735659863828,1.46492391,713.17,712.16,0.28083576]
[1735659865135,0.25816466,713.16,712.16,0.28083576]
[1735659865835,0.25816751,713.15,712.16,0.28083576]
[1735659866035,0.25816751,713.14,712.16,0.28083576]
[1735659866236,0.25816751,713.13,712.16,0.28083576]
[1735659866437,0.25816751,713.12,712.16,0.28083576]
[1735659866635,0.25816784,713.11,712.16,0.28083576]
[1735659866836,0.25816784,713.1,712.16,0.28083576]
[1735659867031,0.25816784,713.09,712.16,0.28083576]
[1735659867232,0.25816784,713.08,712.16,0.28083576]
[1735659867438,0.25816784,713.07,712.16,0.28083576]
[1735659868235,0.25816784,713.07,711.99,1.04758328]
[1735659868834,0.25816784,713.07,711.87,1.04758328]
[1735659869943,0.25816784,713.07,711.86,1.04758328]
[1735659871044,0.25816784,713.07,711.8,1.04758328]
[1735659871244,0.25821751,713.06,711.8,1.04758328]
[1735659871440,1.46536599,713.08,711.8,1.04758328]
[1735659871441,0.25821751,713.05,711.8,1.04758328]
[1735659871645,0.25821751,713.04,711.8,1.04758328]
[1735659871840,0.25821751,713.03,711.8,1.04758328]
[1735659872052,0.25821751,713.02,711.8,1.04758328]
[1735659872245,0.25821751,713.01,711.79,1.04758328]
[1735659872547,0.25821751,713.0,711.79,1.04758328]
[1735659872845,0.25821751,712.99,711.79,1.04758328]
[1735659873043,0.25821751,712.98,711.79,1.04758328]
[1735659873240,0.25821751,712.97,711.79,1.04758328]
[1735659873546,0.25821751,712.96,711.78,1.04758328]
[1735659873744,1.46536599,713.08,711.78,1.04758328]
[1735659873947,0.25821324,713.07,711.78,1.04758328]
[1735659874447,0.25821324,713.06,711.78,1.04758328]
[1735659874646,0.25821324,713.05,711.78,1.04758328]
[1735659874843,0.25821324,713.04,711.78,1.04758328]
[1735659875043,0.25821324,713.03,711.78,1.04758328]
[1735659875248,0.25821324,713.02,711.78,1.04758328]
[1735659875451,0.25821324,713.01,711.78,1.04758328]
[1735659875649,0.25821324,713.0,711.72,1.04758328]
[1735659875948,0.25821324,712.99,711.73,0.28100543]
[1735659876149,0.25821324,712.98,711.73,0.28100543]
[1735659876448,0.25823549,712.97,711.73,0.28100543]
[1735659876647,0.25823549,713.07,711.73,0.28100543]
[1735659876849,0.25823549,713.06,711.73,0.28100543]
[1735659877042,0.25823549,713.05,711.73,0.28100543]
[1735659877242,0.25823549,713.04,711.73,0.28100543]
[1735659877443,0.25823549,713.03,711.73,0.28100543]
[1735659877649,0.25823549,713.02,711.73,0.28100543]
[1735659877947,0.25823549,713.01,711.73,0.28100543]
[1735659878142,0.25823549,713.0,711.73,0.28100543]
[1735659878348,0.25823549,712.99,711.73,0.28100543]
[1735659878551,0.25823549,712.98,711.73,0.28100543]
[1735659879047,0.25824177,712.97,711.73,0.28100543]
[1735659879243,1.46570544,712.99,711.73,0.28100543]
[1735659879244,0.25824177,712.96,711.73,0.28100543]
[1735659879546,0.25824177,712.95,711.73,0.28100543]
[1735659879746,0.25824177,712.94,711.73,0.28100543]
[1735659879948,0.25824177,712.93,711.73,0.28100543]
[1735659880148,0.25824177,712.92,711.73,0.28100543]
[1735659880349,0.25824177,712.91,711.73,0.28100543]
[1735659880546,0.25824177,712.9,711.73,0.28100543]
[1735659880746,0.25824177,712.89,711.73,0.28100543]
[1735659880946,0.25824177,712.88,711.73,0.28100543]
[1735659881151,1.46570544,712.99,711.73,0.28100543]
[1735659881152,0.25824177,712.87,711.73,0.28100543]
[1735659881351,0.25824177,712.86,711.73,0.28100543]
[1735659881551,1.46570544,712.99,711.73,0.28100543]
[1735659881845,0.25825096,712.98,711.73,0.28100543]
[1735659882343,0.25824292,712.97,711.73,0.28100543]
[1735659882547,0.25824292,712.96,711.73,0.28100543]
[1735659882744,0.25824292,712.95,711.73,0.28100543]
[1735659883050,0.25824292,712.94,711.73,0.28100543]
[1735659883250,0.25824292,712.93,711.73,0.28100543]
[1735659883551,0.25824292,712.92,711.73,0.28100543]
[1735659883750,1.46570544,712.99,711.73,0.28100543]
[1735659883751,0.25824292,712.91,711.73,0.28100543]
[1735659883952,0.25824292,712.9,711.73,0.28100543]
[1735659884154,0.25824292,712.89,711.73,0.28100543]
[1735659884350,0.25824234,712.88,711.73,0.28100543]
[1735659884549,1.46570544,712.99,711.73,0.28100543]
[1735659884550,0.25824234,712.87,711.73,0.28100543]
[1735659884852,0.25824234,712.86,711.73,0.28100543]
[1735659885151,0.25824234,712.85,711.73,0.28100543]
[1735659885451,0.25824234,712.84,711.73,0.28100543]
[1735659885653,0.25824234,712.83,711.73,0.28100543]
[1735659885849,0.25824234,712.82,711.73,0.28100543]
[1735659886050,0.25824234,712.81,711.73,0.28100543]
[1735659886351,0.25824234,712.8,711.73,0.28100543]
[1735659886549,0.25824234,712.79,711.73,0.28100543]
[1735659886752,0.25824234,712.78,711.73,0.28100543]
[1735659886952,0.25825061,712.77,711.73,0.28100543]
[1735659887151,0.25825061,712.76,711.73,0.28100543]
[1735659887452,0.25825061,712.75,711.73,0.28100543]
[1735659887652,0.25824877,712.74,711.73,0.28100543]
[1735659887852,1.46570544,712.99,711.73,0.28100543]
[1735659888054,0.25824611,712.98,711.73,0.28100543]
[1735659889448,1.46570544,712.99,711.73,0.28100543]
[1735659889655,0.25825886,712.98,711.73,0.28100543]
[1735659892259,0.25825595,712.97,711.73,0.28100543]
[1735659892559,0.25825595,712.96,711.73,0.28100543]
[1735659892858,0.25825595,712.95,711.73,0.28100543]
[1735659893058,0.25825595,712.94,711.73,0.28100543]
[1735659893251,0.25825595,712.93,711.73,0.28100543]
[1735659893455,0.25825595,712.92,711.73,0.28100543]
[1735659893658,0.25825595,712.91,711.73,0.28100543]
[1735659893858,0.25825595,712.9,711.74,1.04758328]
[1735659894052,0.25825595,712.89,711.74,1.04758328]
[1735659894258,0.25825595,712.88,711.74,1.04758328]
[1735659894461,0.25825595,712.87,711.74,1.04758328]
[1735659894658,0.25825595,712.86,711.74,1.04758328]
[1735659894856,0.2582678,712.85,711.75,1.04758328]
[1735659895055,0.2582678,712.84,711.75,1.04758328]
[1735659895255,0.2582678,712.83,711.75,1.04758328]
[1735659895560,0.2582678,712.82,711.75,1.04758328]
[1735659895856,0.2582678,712.81,711.75,1.04758328]
[1735659896058,0.2582678,712.8,711.73,0.28100543]
[1735659896260,0.2582678,712.79,711.73,0.28100543]
[1735659896457,0.2582678,712.78,711.73,0.28100543]
[1735659896665,0.2582678,712.77,711.73,0.28100543]
[1735659896966,0.25828087,712.76,711.73,0.28100543]
[1735659897166,0.25828087,712.75,711.73,0.28100543]
[1735659897361,0.25828087,712.74,711.73,0.28100543]
[1735659897557,0.25828583,712.73,711.73,0.28100543]
[1735659897756,0.25828583,712.72,711.73,0.28100543]
[1735659897961,0.25828583,712.71,711.73,0.28100543]
[1735659898162,0.25828583,712.7,711.73,0.28100543]
[1735659898365,0.25827522,712.69,711.73,0.28100543]
[1735659898568,1.46580834,712.9,711.73,0.28100543]
[1735659898863,0.25827696,712.89,711.73,0.28100543]
[1735659901761,0.25829884,712.88,711.73,0.28100543]
[1735659902067,0.25829604,712.87,711.73,0.28100543]
[1735659902358,0.25829604,712.86,711.73,0.28100543]
[1735659902558,0.25829604,712.85,711.73,0.28100543]
[1735659902859,1.46580834,712.9,711.73,0.28100543]
[1735659903063,2.51661059,712.9,711.73,0.28100543]
[1735659904066,0.25830043,712.89,711.73,0.28100543]
[1735659904262,1.46580834,712.9,711.73,0.28100543]
[1735659904461,0.25831007,712.89,711.73,0.28100543]
[1735659904662,1.46580834,712.9,711.73,0.28100543]
[1735659907370,1.46580834,712.9,711.87,1.04758328]
[1735659908672,1.46580834,712.9,711.85,1.04758328]
[1735659908874,1.46580834,712.9,711.86,0.28095412]
[1735659909466,1.05080225,713.35,711.86,0.28095412]
[1735659909674,1.46549969,713.01,711.86,0.28095412]
[1735659910072,1.05080225,713.36,711.86,0.28095412]
[1735659910373,1.46545341,713.01,711.86,0.28095412]
[1735659910577,1.05080225,713.36,711.86,0.28095412]
[1735659910771,1.72344219,713.35,711.86,0.28095412]
[1735659910974,0.25816875,713.34,711.86,0.28095412]
[1735659911371,0.25816875,713.34,711.94,1.04758328]
[1735659911372,1.308971,713.34,711.94,1.04758328]
[1735659911575,0.25816875,713.33,711.94,1.04758328]
[1735659911975,0.25816875,713.32,711.94,1.04758328]
[1735659912178,0.25816875,713.31,711.94,1.04758328]
[1735659912378,1.05080225,713.34,711.94,1.04758328]
[1735659912581,1.46527344,713.35,711.98,1.04758328]
[1735659912582,1.05080225,713.3,711.98,1.04758328]
[1735659912774,0.25816706,713.29,711.98,1.04758328]
[1735659913175,0.25816768,713.28,711.98,1.04758328]
[1735659913376,0.25816768,713.27,711.98,1.04758328]
[1735659913577,0.25816768,713.26,711.98,1.04758328]
[1735659913772,0.25816768,713.25,711.98,1.04758328]
[1735659913980,0.25816768,713.24,711.98,1.04758328]
[1735659914181,0.25816768,713.23,711.94,1.04758328]
[1735659914380,0.25816768,713.22,711.94,1.04758328]
[1735659914574,0.25816768,713.21,711.94,1.04758328]
[1735659914875,1.05080225,713.28,711.94,1.04758328]
[1735659914876,0.25816768,713.2,711.94,1.04758328]
[1735659915073,1.05080225,713.28,711.94,1.04758328]
[1735659915282,0.25816011,713.27,711.92,1.04758328]
[1735659915477,0.25816011,713.26,711.92,1.04758328]
[1735659915678,0.25816011,713.25,711.92,1.32851372]
[1735659915877,0.25816011,713.24,711.92,1.32851372]
[1735659916078,0.25816011,713.23,711.92,1.32851372]
[1735659916279,0.25816011,713.22,711.92,1.32851372]
[1735659916475,0.25816011,713.21,711.94,1.04758328]
[1735659916679,0.25816011,713.2,711.94,1.04758328]
[1735659916976,0.25816011,713.19,711.94,1.04758328]
[1735659917180,0.25815603,713.18,711.94,1.04758328]
[1735659917380,0.25815603,713.17,711.94,1.04758328]
[1735659917582,0.25815603,713.16,711.92,0.28093044]
[1735659917775,0.25816332,713.15,711.92,0.28093044]
[1735659917979,0.25816332,713.14,711.92,0.28093044]
[1735659918180,0.25816332,713.13,711.92,0.28093044]
[1735659918376,0.25816332,713.12,711.92,0.28093044]
[1735659918584,1.46527344,713.35,711.92,0.28093044]